fUSD/lending_fUSD_20250614
["ID","MTS","AMOUNT","RATE_DAILY","PERIOD"]
[365771574,1749901840150,-1924.40087333,0.00016899,2]
[365771575,1749901840160,-1924.40087333,0.000169,2]
[365771576,1749901840170,-1041.28280226,0.000169,2]
[365771577,1749901840187,-883.11807107,0.000169,2]
[365771578,1749901840197,-1924.40087333,0.000169,2]
[365771579,1749901840207,-1924.40087333,0.000169,2]
[365771580,1749901840216,-204.72869444,0.000169,2]
[365771581,1749901840226,-1924.40087333,0.000169,2]
[365771582,1749901840235,-853.3520294,0.000169,2]
[365771583,1749901840245,-1805.77535474,0.000169,2]
[365771584,1749901840255,-641.575,0.00016934,2]
[365771585,1749901840264,-470.58509326,0.00016973,2]
[365771586,1749901840274,-500.0,0.00016973,2]
[365771587,1749901840283,-500.0,0.00016973,2]
[365771588,1749901840292,-500.0,0.00016973,2]
[365771589,1749901840302,-162.05703542,0.00016973,2]
[365771590,1749901840311,-500.0,0.00016973,2]
[365771591,1749901840321,-500.91731703,0.00016973,2]
[365771592,1749901840330,-502.17725983,0.00016973,2]
[365771593,1749901840339,-205.27955896,0.00016973,2]
[365771594,1749901840349,-503.25704212,0.00016973,2]
[365771595,1749901840358,-500.0,0.00016973,2]
[365771596,1749901840367,-500.0,0.00016973,2]
[365771597,1749901840377,-151.0,0.00016983,2]
[365771598,1749901840391,-152.32,0.00016989,2]
[365771599,1749901840400,-2141.93244809,0.00016998,2]
[365771600,1749901840411,-300.0,0.00016998,2]
[365771601,1749901840420,-666.0,0.00016998,2]
[365771602,1749901840430,-29370.71681502,0.00016999,2]
[365771603,1749901840439,-300.0,0.00016999,2]
[365771604,1749901840449,-1166.28828432,0.00016999,2]
[365771605,1749901840459,-666.0,0.00016999,2]
[365771606,1749901840468,-181.69,0.00016999,2]
[365771607,1749901840478,-150.0,0.00016999,2]
[365771608,1749901840487,-300.0,0.00016999,2]
[365771609,1749901840496,-150.0,0.00016999,2]
[365771610,1749901840505,-150.0,0.00016999,2]
[365771611,1749901840515,-153.28930996,0.00016999,2]
[365771612,1749901840524,-217.16735269,0.00016999,2]
[365771613,1749901840533,-180.17655997,0.00016999,2]
[365771614,1749901840542,-500.0,0.00016999,2]
[365771615,1749901840553,-603.92290283,0.00016999,2]
[365771616,1749901840562,-199.51670023,0.00016999,2]
[365771617,1749901840571,-318.691973,0.00016999,2]
[365771618,1749901840581,-500.0,0.00016999,2]
[365771619,1749901840590,-500.0,0.00016999,2]
[365771620,1749901840600,-500.0,0.00016999,2]
[365771621,1749901840609,-500.0,0.00016999,2]
[365771622,1749901840618,-500.0,0.00016999,2]
[365771623,1749901840627,-500.0,0.00016999,2]
[365771624,1749901840637,-512.73691167,0.00016999,2]
[365771625,1749901840646,-534.83523395,0.00016999,2]
[365771626,1749901840655,-500.0,0.00016999,2]
[365771627,1749901840664,-472.34341249,0.00016999,2]
[365771628,1749901840674,-500.0,0.00016999,2]
[365771629,1749901840683,-500.0,0.00016999,2]
[365771630,1749901840693,-500.0,0.00016999,2]
[365771631,1749901840702,-500.0,0.00016999,2]
[365771632,1749901840711,-301.18,0.00016999,2]
[365771633,1749901840721,-538.0,0.00016999,2]
[365771634,1749901840730,-326057.56908706,0.00017,2]
[365771644,1749901842645,-5440.0,0.00017,2]
[365771645,1749901842658,-10745.25899513,0.00017,2]
[365771646,1749901842753,-50000.0,0.00017,2]
[365771647,1749901842764,-21365.3579625,0.00017,2]
[365771648,1749901845680,-5350.0,0.00017,2]
[365771649,1749901872045,202.0,0.0001555,2]
[365771650,1749901990948,500.0,0.00024715,120]
[365771651,1749902005460,500.0,0.00024715,120]
[365771652,1749902013419,500.0,0.00024999,120]
[365771653,1749902022414,-262.12368052,0.00016099,2]
[365771654,1749902032852,168.0,0.00015825,2]
[365771655,1749902046818,-193.65132689,0.00016099,2]
[365771656,1749902047958,-177.12607693,0.00016099,2]
[365771657,1749902049781,-231.85590464,0.00016099,2]
[365771658,1749902053396,-417.95568379,0.00016099,2]
[365771659,1749902055128,-217.28732723,0.00016099,2]
[365771660,1749902055152,-146.20308859,0.00016099,2]
[365771661,1749902058075,-155.56691141,0.00016099,2]
[365771662,1749902058099,-4.80864841,0.00016099,2]
[365771663,1749902060133,-269.17480685,0.00016099,2]
[365771664,1749902062024,-31.83654474,0.00016099,2]
[365771665,1749902062048,-119.16345526,0.00016099,2]
[365771666,1749902064820,-183.47654474,0.00016099,2]
[365771667,1749902064843,-48.95647177,0.00016099,2]
[365771668,1749902066351,193.36,0.00015912,2]
[365771669,1749902069344,-251.99352823,0.00016099,2]
[365771670,1749902069367,-49.4801576,0.00016137,2]
[365771671,1749902070678,-152.0,0.00016137,2]
[365771672,1749902073527,-103.0398424,0.00016137,2]
[365771673,1749902073557,-196.30817424,0.00016138,2]
[365771674,1749902076247,-109.38182576,0.00016138,2]
[365771675,1749902076271,-107.43967369,0.00016138,2]
[365771676,1749902078640,-210.76660936,0.00016099,2]
[365771677,1749902080681,-92.55339064,0.00016099,2]
[365771678,1749902080704,-193.50032631,0.00016138,2]
[365771679,1749902080726,-23.70967369,0.00016138,2]
[365771680,1749902083708,-151.0,0.00016138,2]
[365771681,1749902086477,-131.20032631,0.00016138,2]
[365771682,1749902086502,-56.17934467,0.00016143,2]
[365771683,1749902088277,-196.07197519,0.00016143,2]
[365771684,1749902090486,-52.42868014,0.00016143,2]
[365771685,1749902090514,-195.0235606,0.00016143,2]
[365771686,1749902093840,-206.88157774,0.00016099,2]
[365771687,1749902097526,-94.51842226,0.00016099,2]
[365771688,1749902097550,-106.0464394,0.00016143,2]
[365771689,1749902097576,-10.11804546,0.00016143,2]
[365771690,1749902099297,-295.38195454,0.00016143,2]
[365771691,1749902117622,400.0,0.00024657,120]
[365771692,1749902118594,400.0,0.00024657,120]
[365771693,1749902122456,400.0,0.00024657,120]
[365771694,1749902123325,-172.8,0.00016143,2]
[365771695,1749902126050,-132.49,0.00016143,2]
[365771696,1749902149516,-300.39,0.00016148,2]
[365771697,1749902250121,154.91,0.00013699,2]
[365771699,1749902291492,632.37,0.00013952,2]
[365771700,1749902292341,150.0,0.00013952,2]
[365771701,1749902293912,-153.58,0.00016163,2]
[365771702,1749902293937,-37.04444018,0.00016163,2]
[365771703,1749902299118,1688.77790267,0.00015829,2]
[365771704,1749902299143,10000.0,0.00015829,2]
[365771705,1749902299168,10000.0,0.00015829,2]
[365771706,1749902299191,1769.28209733,0.00015829,2]
[365771707,1749902411907,200.0,0.00015281,2]
[365771708,1749902412169,200.0,0.00015878,2]
[365771709,1749902413859,283.16,0.00015774,2]
[365771710,1749902528036,-207.4,0.00016154,2]
[365771711,1749902582709,-172.36551022,0.00016161,2]
[365771712,1749902586522,-127.63448978,0.00016161,2]
[365771713,1749902591411,500.0,0.00024715,120]
[365771714,1749902605060,500.0,0.00024715,120]
[365771715,1749902643000,-288.37076245,0.00016161,2]
[365771716,1749902645704,-11.62923755,0.00016161,2]
[365771717,1749902703196,-288.37076245,0.00016161,2]
[365771718,1749902704684,-220.04675857,0.00016161,2]
[365771719,1749902709449,1079.0,0.00016,2]
[365771720,1749902711035,-222.86778764,0.00016161,2]
[365771721,1749902713993,1079.0,0.00016,2]
[365771722,1749902718630,1079.0,0.00016,2]
[365771723,1749902722181,1347.82,0.00015646,2]
[365771724,1749902775263,200.0,0.00015474,2]
[365771725,1749902804389,429.51,0.00015626,2]
[365771749,1749902861359,310.01476252,0.00025,120]
[365771750,1749902875917,1000.0,0.00015626,2]
[365771756,1749902995444,400.0,0.00024657,120]
[365771757,1749903015592,3013.11,0.00025,120]
[365771758,1749903031792,-200.0,0.00016084,2]
[365771759,1749903031802,-151.0,0.00016152,2]
[365771760,1749903031811,-207.4,0.00016152,2]
[365771761,1749903031820,-151.0,0.00016152,2]
[365771762,1749903031829,-300.0,0.00016161,2]
[365771763,1749903031838,-1200.0,0.00016161,2]
[365771764,1749903031847,-254.26,0.00016162,2]
[365771765,1749903031857,-252.62,0.00016162,2]
[365771766,1749903031865,-245.49,0.00016162,2]
[365771767,1749903031874,-247.94,0.00016162,2]
[365771768,1749903031884,-246.1,0.00016162,2]
[365771769,1749903031893,-254.6,0.00016162,2]
[365771770,1749903031902,-253.04,0.00016162,2]
[365771771,1749903031911,-246.36,0.00016162,2]
[365771772,1749903031921,-302.37,0.00016162,2]
[365771773,1749903031930,-248.2,0.00016162,2]
[365771774,1749903031940,-246.12,0.00016162,2]
[365771775,1749903031949,-245.79,0.00016162,2]
[365771776,1749903031958,-300.21,0.00016162,2]
[365771777,1749903031967,-254.54,0.00016162,2]
[365771778,1749903031976,-249.66,0.00016162,2]
[365771779,1749903031985,-245.83,0.00016162,2]
[365771780,1749903031994,-302.95,0.00016162,2]
[365771781,1749903032002,-246.47,0.00016162,2]
[365771782,1749903032011,-249.03,0.00016162,2]
[365771783,1749903032020,-254.35,0.00016162,2]
[365771784,1749903032029,-304.0,0.00016162,2]
[365771785,1749903032041,-247.43,0.00016162,2]
[365771786,1749903032050,-247.23,0.00016162,2]
[365771787,1749903032060,-305.95,0.00016162,2]
[365771788,1749903032069,-252.6,0.00016162,2]
[365771789,1749903032078,-248.98,0.00016162,2]
[365771790,1749903032087,-247.52,0.00016162,2]
[365771791,1749903032096,-301.07,0.00016162,2]
[365771792,1749903032106,-247.32,0.00016162,2]
[365771794,1749903032115,-254.8,0.00016162,2]
[365771795,1749903032124,-253.87,0.00016162,2]
[365771796,1749903032133,-301.99,0.00016162,2]
[365771797,1749903032142,-231.91,0.00016162,2]
[365771798,1749903032158,-19.44,0.00016162,2]
[365771799,1749903032167,-254.14,0.00016162,2]
[365771800,1749903032176,-300.46,0.00016162,2]
[365771801,1749903032185,-118.51818729,0.00016162,2]
[365771802,1749903032197,-184.18181271,0.00016162,2]
[365771803,1749903032207,-249.66,0.00016162,2]
[365771804,1749903032219,-250.67,0.00016162,2]
[365771805,1749903032229,-251.9,0.00016162,2]
[365771806,1749903032240,-304.51,0.00016162,2]
[365771807,1749903032250,-304.71,0.00016162,2]
[365771808,1749903032259,-304.71,0.00016162,2]
[365771809,1749903032268,-301.73,0.00016162,2]
[365771810,1749903032277,-303.96,0.00016162,2]
[365771811,1749903032286,-303.92,0.00016162,2]
[365771812,1749903032295,-1166.28828432,0.00016163,2]
[365771813,1749903032304,-184.27521091,0.00016163,2]
[365771814,1749903032312,-301.18,0.00016163,2]
[365771815,1749903032322,-301.7,0.00016163,2]
[365771816,1749903032331,-263.24555982,0.00016163,2]
[365771817,1749903032341,-300.33,0.00016163,2]
[365771818,1749903032350,-302.5,0.00016163,2]
[365771819,1749903032359,-300.68,0.00016163,2]
[365771820,1749903032369,-302.98,0.00016163,2]
[365771821,1749903032378,-305.54,0.00016163,2]
[365771822,1749903032387,-304.99,0.00016163,2]
[365771823,1749903032398,-303.76,0.00016163,2]
[365771824,1749903032407,-305.06,0.00016163,2]
[365771825,1749903032416,-301.18,0.00016163,2]
[365771826,1749903032426,-303.22,0.00016163,2]
[365771827,1749903032436,-303.57,0.00016163,2]
[365771828,1749903032445,-300.15,0.00016164,2]
[365771829,1749903032454,-302.05,0.00016164,2]
[365771830,1749903032463,-303.65,0.00016164,2]
[365771831,1749903032472,-302.66,0.00016164,2]
[365771832,1749903032482,-500.0,0.00016164,2]
[365771833,1749903032491,-700.0,0.00016164,2]
[365771834,1749903032500,-153.58,0.00016203,2]
[365771835,1749903032510,-632.37,0.00016216,2]
[365771836,1749903032519,-153.58,0.00016244,2]
[365771837,1749903032528,-303.8,0.00016311,2]
[365771838,1749903032538,-152.0,0.00016407,3]
[365771839,1749903032548,-168.0,0.00016412,2]
[365771840,1749903032557,-303.73,0.00016425,2]
[365771841,1749903032567,-168.0,0.00016529,2]
[365771842,1749903032577,-754.237952,0.0001666,2]
[365771843,1749903032587,-200.0,0.00016694,3]
[365771844,1749903032597,-1079.0,0.00016697,2]
[365771845,1749903032607,-152.0,0.00016795,4]
[365771846,1749903032616,-150.0,0.0001688,2]
[365771847,1749903032627,-1099.6520721,0.00016899,2]
[365771848,1749903032636,-405.1066803,0.00016899,2]
[365771849,1749903032646,-405.10668023,0.00016899,2]
[365771850,1749903032655,-405.10668023,0.00016899,2]
[365771851,1749903032668,-405.10668023,0.00016899,2]
[365771852,1749903032677,-405.10668023,0.00016899,2]
[365771853,1749903032687,-405.10668023,0.000169,2]
[365771854,1749903032696,-405.10668023,0.000169,2]
[365771855,1749903032704,-405.10668023,0.000169,2]
[365771856,1749903032714,-405.10668023,0.000169,2]
[365771857,1749903032723,-720.89648528,0.000169,2]
[365771858,1749903032734,-163.78295556,0.000169,2]
[365771859,1749903032744,-405.10668023,0.000169,2]
[365771860,1749903032755,-17402.4260916,0.000169,5]
[365771861,1749903032765,-26241.29413387,0.000169,2]
[365771862,1749903032775,-165.42667135,0.000169,2]
[365771863,1749903032783,-1203.85023648,0.000169,2]
[365771864,1749903032793,-568.90135294,0.000169,2]
[365771865,1749903032802,-513.26,0.00016929,2]
[365771866,1749903032811,-387.12167847,0.00016973,2]
[365771867,1749903032820,-500.0,0.00016973,2]
[365771868,1749903032829,-500.0,0.00016973,2]
[365771869,1749903032838,-500.0,0.00016973,2]
[365771870,1749903032847,-358.57296802,0.00016973,2]
[365771871,1749903032856,-500.0,0.00016973,2]
[365771872,1749903032866,-500.0,0.00016973,2]
[365771873,1749903033222,-300.0,0.00016981,2]
[365771874,1749903033232,-150.0,0.0001699,2]
[365771875,1749903033242,-150.0,0.0001699,2]
[365771876,1749903033251,-300.0,0.00016998,2]
[365771877,1749903033261,-300.0,0.00016998,2]
[365771878,1749903033271,-673.06473908,0.00016999,2]
[365771879,1749903033280,-300.0,0.00016999,2]
[365771880,1749903033290,-666.0,0.00016999,2]
[365771881,1749903033299,-300.0,0.00016999,2]
[365771882,1749903033309,-666.0,0.00016999,2]
[365771883,1749903033318,-300.0,0.00016999,2]
[365771884,1749903033328,-300.0,0.00016999,2]
[365771885,1749903033337,-181.69,0.00016999,2]
[365771886,1749903033347,-153.28930996,0.00016999,2]
[365771887,1749903033357,-217.16735269,0.00016999,2]
[365771888,1749903033367,-180.17655997,0.00016999,2]
[365771889,1749903033377,-500.0,0.00016999,2]
[365771890,1749903033386,-199.51670023,0.00016999,2]
[365771891,1749903033396,-603.92290283,0.00016999,2]
[365771892,1749903033406,-318.691973,0.00016999,2]
[365771893,1749903033415,-500.0,0.00016999,2]
[365771894,1749903033425,-500.0,0.00016999,2]
[365771895,1749903033435,-500.0,0.00016999,2]
[365771896,1749903033444,-500.0,0.00016999,2]
[365771897,1749903033453,-512.73691167,0.00016999,2]
[365771898,1749903033463,-500.0,0.00016999,2]
[365771899,1749903033472,-500.0,0.00016999,2]
[365771900,1749903033482,-534.83523395,0.00016999,2]
[365771901,1749903033492,-235.46565496,0.00016999,2]
[365771902,1749903033502,-500.0,0.00016999,2]
[365771903,1749903033513,-472.34341249,0.00016999,2]
[365771904,1749903033522,-500.0,0.00016999,2]
[365771905,1749903033532,-500.0,0.00016999,2]
[365771906,1749903033542,-500.0,0.00016999,2]
[365771907,1749903033551,-500.0,0.00016999,2]
[365771908,1749903033561,-535.0,0.00016999,2]
[365771909,1749903033571,-301.03,0.00017,2]
[365771910,1749903033581,-1241.4,0.00017,2]
[365771911,1749903033591,-550544.80858637,0.00017,2]
[365771912,1749903033607,-1808.26203515,0.00017,2]
[365771913,1749903037627,-1499.78727024,0.00016999,2]
[365771914,1749903037837,-537.03308306,0.00016999,2]
[365771988,1749903040719,-469.66760136,0.00016999,2]
[365771989,1749903040730,-5086.35239991,0.00016999,2]
[365771990,1749903040751,-37084.20710475,0.00016999,2]
[365771991,1749903040760,-13293.42815401,0.00017,2]
[365771992,1749903040791,-371632.05699128,0.00017,2]
[365772001,1749903042757,-159.39672902,0.000169,2]
[365772002,1749903042767,-103.88643585,0.00017,2]
[365772003,1749903042863,-273034.3249278,0.00017,2]
[365772010,1749903190838,500.0,0.00024756,120]
[365772011,1749903205403,500.0,0.00024756,120]
[365772012,1749903208566,500.0,0.00024999,120]
[365772014,1749903217920,154.91,0.00013699,2]
[365772015,1749903353637,1178.31790267,0.00015914,2]
[365772016,1749903353659,10000.0,0.00015914,2]
[365772017,1749903353680,8821.68209733,0.00015914,2]
[365772022,1749903380089,600.22,0.00013976,2]
[365772023,1749903416377,232.24,0.00015864,2]
[365772024,1749903492069,200.0,0.00015304,2]
[365772025,1749903492104,145.85790267,0.00015942,2]
[365772026,1749903492126,54.14209733,0.00015942,2]
[365772027,1749903515797,9945.85790267,0.000159,2]
[365772028,1749903515818,3205.14209733,0.000159,2]
[365772030,1749903672012,197.477203,7.945e-05,2]
[365772031,1749903709886,2428.49,0.00015851,2]
[365772032,1749903775865,585.7,0.0001578,2]
[365772033,1749903790758,500.0,0.00024756,120]
[365772034,1749903799865,1278.5,0.00015789,2]
[365772035,1749903802592,360.869541,0.00024756,120]
[365772036,1749903805456,500.0,0.00024999,120]
[365772037,1749903852545,200.0,0.00015581,2]
[365772038,1749903866556,602.73,0.00015769,2]
[365772039,1749903873610,400.0,0.00024657,120]
[365772040,1749903962203,1000.0,0.00015769,2]
[365772041,1749903982347,500.0,0.00025,120]
[365772043,1749904025458,200.0,0.00015851,2]
[365772071,1749904076311,301.96069967,0.00015769,2]
[365772072,1749904076337,10000.0,0.00015769,2]
[365772073,1749904076359,10000.0,0.00015769,2]
[365772074,1749904076382,599.57930033,0.00015769,2]
[365772088,1749904179175,4999.999,0.00025,120]
[365772089,1749904216815,200.0,0.00015234,2]
[365772090,1749904217087,200.0,0.00015902,2]
[365772098,1749904231867,-1957.856,0.00016153,2]
[365772100,1749904231877,-207.4,0.00016153,2]
[365772101,1749904231887,-300.0,0.00016162,2]
[365772102,1749904231897,-245.09,0.00016163,2]
[365772103,1749904231907,-78.88191929,0.00016163,2]
[365772104,1749904231924,-169.41808071,0.00016163,2]
[365772105,1749904231934,-247.46,0.00016163,2]
[365772106,1749904231947,-254.06,0.00016163,2]
[365772107,1749904231957,-252.28,0.00016163,2]
[365772108,1749904231967,-249.88,0.00016163,2]
[365772109,1749904231976,-251.37,0.00016163,2]
[365772110,1749904231986,-248.34,0.00016163,2]
[365772111,1749904231998,-246.04,0.00016163,2]
[365772112,1749904232007,-251.42,0.00016163,2]
[365772113,1749904232017,-245.02,0.00016163,2]
[365772114,1749904232026,-247.82,0.00016163,2]
[365772115,1749904232035,-249.3,0.00016163,2]
[365772116,1749904232045,-500.0,0.00016164,2]
[365772117,1749904232054,-700.0,0.00016164,2]
[365772118,1749904232063,-600.0,0.00016164,4]
[365772119,1749904232072,-303.06,0.00016164,2]
[365772120,1749904232081,-305.76,0.00016164,2]
[365772121,1749904232091,-302.55,0.00016164,2]
[365772122,1749904232099,-302.47,0.00016164,2]
[365772123,1749904232109,-304.41,0.00016164,2]
[365772124,1749904232118,-300.01,0.00016164,2]
[365772125,1749904232127,-303.15,0.00016165,2]
[365772126,1749904232136,-304.13,0.00016168,2]
[365772127,1749904232145,-302.96,0.00016168,2]
[365772128,1749904232155,-600.0,0.00016178,4]
[365772129,1749904232164,-305.11,0.00016192,2]
[365772130,1749904232174,-1616.58090047,0.00016208,2]
[365772131,1749904232183,-151.0,0.00016232,2]
[365772132,1749904232192,-600.22,0.0001624,2]
[365772133,1749904232202,-200.0,0.0001657,3]
[365772134,1749904232211,-791.132491,0.0001666,2]
[365772135,1749904232220,-150.0,0.00016732,2]
[365772136,1749904232230,-150.0,0.00016739,2]
[365772137,1749904232239,-643.0,0.00016756,2]
[365772138,1749904232248,-150.0,0.00016756,2]
[365772139,1749904232257,-150.0,0.00016756,2]
[365772140,1749904232266,-150.0,0.00016763,2]
[365772141,1749904232275,-150.0,0.00016769,2]
[365772142,1749904232284,-150.0,0.0001677,2]
[365772143,1749904232293,-150.0,0.00016786,2]
[365772144,1749904232302,-32185.54562504,0.000168,2]
[365772145,1749904232312,-33971.41564297,0.000168,2]
[365772146,1749904232324,-292.46567899,0.000168,2]
[365772147,1749904232336,-313.26189526,0.000168,2]
[365772148,1749904236393,-9866.85678278,0.000168,2]
[365772149,1749904236403,-150.0,0.00016807,2]
[365772150,1749904236413,-150.0,0.00016824,2]
[365772151,1749904236425,-150.0,0.00016832,2]
[365772152,1749904236435,-150.0,0.00016838,2]
[365772153,1749904236445,-150.0,0.00016844,2]
[365772154,1749904236455,-643.0,0.00016847,2]
[365772156,1749904236464,-150.0,0.0001685,2]
[365772157,1749904236475,-150.0,0.00016851,2]
[365772158,1749904236484,-150.0,0.00016854,2]
[365772159,1749904236494,-150.0,0.00016854,2]
[365772160,1749904236503,-150.0,0.00016862,2]
[365772161,1749904236513,-150.0,0.00016868,2]
[365772162,1749904236522,-150.0,0.00016876,2]
[365772163,1749904236531,-150.0,0.00016879,2]
[365772164,1749904236541,-151.0,0.0001689,2]
[365772165,1749904236552,-151.0,0.0001689,2]
[365772166,1749904236562,-150.0,0.00016892,2]
[365772167,1749904236571,-150.0,0.00016894,2]
[365772168,1749904236581,-150.0,0.00016896,2]
[365772169,1749904236591,-500.0,0.00016899,2]
[365772170,1749904236600,-617.91127308,0.00016899,2]
[365772171,1749904236611,-2141.93244809,0.00016899,2]
[365772172,1749904236621,-500.0,0.000169,2]
[365772174,1749904236632,-3956.5751,0.000169,2]
[365772176,1749904236642,-1598.67,0.000169,2]
[365772178,1749904236652,-163.78295553,0.000169,2]
[365772180,1749904236662,-341.51,0.000169,2]
[365772182,1749904236671,-20180.75089994,0.000169,2]
[365772184,1749904236682,-170.78,0.000169,2]
[365772186,1749904236692,-170.72,0.000169,2]
[365772188,1749904236701,-164.82223643,0.000169,2]
[365772190,1749904236711,-150.0,0.000169,2]
[365772192,1749904236719,-153.64068744,0.000169,2]
[365772194,1749904236729,-379.26756862,0.000169,2]
[365772196,1749904236738,-183.81691542,0.000169,2]
[365772198,1749904236747,-556.87923795,0.000169,2]
[365772199,1749904236757,-75555.999999,0.000169,2]
[365772201,1749904236766,-150.0,0.00016908,2]
[365772203,1749904236775,-150.0,0.00016913,2]
[365772206,1749904236785,-150.0,0.00016915,2]
[365772207,1749904236794,-150.0,0.00016918,2]
[365772210,1749904236803,-150.0,0.00016921,2]
[365772211,1749904236813,-150.0,0.00016925,2]
[365772213,1749904236823,-150.0,0.0001693,2]
[365772216,1749904236832,-150.0,0.00016943,2]
[365772217,1749904236842,-151.0,0.00016945,2]
[365772219,1749904236851,-410.608,0.00016945,2]
[365772221,1749904236861,-150.0,0.00016947,2]
[365772223,1749904236870,-620.0,0.00016959,2]
[365772225,1749904236879,-150.0,0.0001697,2]
[365772227,1749904236889,-500.0,0.00016973,2]
[365772230,1749904236899,-167.23204523,0.00016973,2]
[365772232,1749904236908,-500.0,0.00016973,2]
[365772234,1749904236918,-500.0,0.00016973,2]
[365772236,1749904236928,-150.0,0.00016975,2]
[365772237,1749904236938,-150.0,0.00016979,2]
[365772240,1749904236948,-150.0,0.00016984,2]
[365772242,1749904236957,-867.9924602,0.00016984,2]
[365772244,1749904236967,-198.72,0.0001699,2]
[365772245,1749904236976,-198.72,0.0001699,2]
[365772247,1749904236985,-198.72,0.0001699,2]
[365772249,1749904236996,-198.72,0.0001699,2]
[365772251,1749904237015,-198.72,0.0001699,2]
[365772253,1749904237027,-5613.04807651,0.0001699,2]
[365772255,1749904237036,-250.0,0.0001699,2]
[365772258,1749904237045,-250.0,0.0001699,2]
[365772259,1749904237055,-150.0,0.0001699,2]
[365772261,1749904237064,-154.87666312,0.0001699,2]
[365772264,1749904237074,-150.0,0.0001699,2]
[365772265,1749904237085,-150.0,0.0001699,2]
[365772268,1749904237096,-150.0,0.00016994,2]
[365772270,1749904237105,-300.0,0.00016999,2]
[365772272,1749904237115,-195.45,0.00016999,2]
[365772274,1749904237125,-500.0,0.00016999,2]
[365772276,1749904237134,-500.0,0.00016999,2]
[365772278,1749904237143,-500.0,0.00016999,2]
[365772279,1749904237153,-293.57586069,0.00016999,2]
[365772282,1749904237164,-500.0,0.00016999,2]
[365772283,1749904237174,-500.0,0.00016999,2]
[365772285,1749904237184,-500.0,0.00016999,2]
[365772287,1749904237193,-247.86254168,0.00016999,2]
[365772289,1749904237202,-388.4835234,0.00016999,2]
[365772291,1749904237212,-500.0,0.00016999,2]
[365772293,1749904237222,-219.84138905,0.00016999,2]
[365772295,1749904237232,-202.03136616,0.00016999,2]
[365772297,1749904237242,-258.83302353,0.00016999,2]
[365772300,1749904237252,-648.92013378,0.00016999,2]
[365772302,1749904237261,-473.0843811,0.00016999,2]
[365772303,1749904237271,-500.0,0.00016999,2]
[365772306,1749904237282,-500.0,0.00016999,2]
[365772308,1749904237291,-550.0,0.00016999,2]
[365772310,1749904237301,-283.09327194,0.00017,2]
[365772312,1749904237312,-442948.75236788,0.00017,2]
[365772314,1749904237325,-30811.26995399,0.00017,2]
[365772316,1749904237334,-151.106618,0.00017,2]
[365772318,1749904237343,-151.860597,0.00017,2]
[365772320,1749904237352,-151.0,0.00017,2]
[365772322,1749904237362,-103614.56215333,0.00017,2]
[365772324,1749904237374,-62982.24328297,0.00017,2]
[365772378,1749904237836,-2212.14033473,0.00017,2]
[365772390,1749904237951,-1056.19117056,0.00017,2]
[365772392,1749904237963,-1109.25673994,0.00017,2]
[365772394,1749904237975,-2443.57586069,0.00017,2]
[365772410,1749904238118,-348286.52730679,0.00017,2]
[365772528,1749904240698,-151.0,0.0001623,2]
[365772529,1749904240708,-3001.4,0.00016999,2]